[Event "*** Titled Tuesday Blitz"]
[Site "Chess.com"]
[Date "2020.04.07"]
[Round "2"]
[White "IwkooO"]
[Black "sergoy"]
[Result "0-1"]
[WhiteElo "2569"]
[BlackElo "2861"]
[TimeControl "180+1"]
[EndTime "13:21:01 PDT"]
[Termination "sergoy won by resignation"]

1. e4 {[%clk 0:03:00.9]} 1... c5 {[%clk 0:02:59.7]} 2. Nf3 {[%clk 0:03:00.9]}
2... d6 {[%clk 0:03:00.1]} 3. d4 {[%clk 0:03:01.8]} 3... cxd4 {[%clk 0:03:01]}
4. Nxd4 {[%clk 0:03:02.7]} 4... Nf6 {[%clk 0:03:01.4]} 5. Nc3 {[%clk 0:03:03.3]}
5... a6 {[%clk 0:03:02]} 6. Be3 {[%clk 0:03:03.8]} 6... e5 {[%clk 0:03:01.2]} 7.
Nb3 {[%clk 0:03:04.4]} 7... Be6 {[%clk 0:03:00.9]} 8. f3 {[%clk 0:03:04.9]} 8...
Be7 {[%clk 0:03:01.2]} 9. Qd2 {[%clk 0:03:05.4]} 9... O-O {[%clk 0:02:59.6]} 10.
O-O-O {[%clk 0:03:05.6]} 10... Nbd7 {[%clk 0:02:59.5]} 11. g4 {[%clk 0:03:05.3]}
11... b5 {[%clk 0:02:59.9]} 12. g5 {[%clk 0:03:06.2]} 12... Nh5 {[%clk
0:02:58.7]} 13. Rg1 {[%clk 0:02:51.5]} 13... Nb6 {[%clk 0:02:57.7]} 14. Nd5
{[%clk 0:02:44.8]} 14... Nxd5 {[%clk 0:02:56.8]} 15. exd5 {[%clk 0:02:45.7]}
15... Bf5 {[%clk 0:02:57.3]} 16. Bd3 {[%clk 0:02:45.1]} 16... Bxd3 {[%clk
0:02:56.8]} 17. Qxd3 {[%clk 0:02:46]} 17... f5 {[%clk 0:02:48.8]} 18. gxf6
{[%clk 0:02:18.4]} 18... Bxf6 {[%clk 0:02:48.2]} 19. Qf5 {[%clk 0:02:13.3]}
19... Nf4 {[%clk 0:02:43.2]} 20. Bxf4 {[%clk 0:02:09.7]} 20... exf4 {[%clk
0:02:44.1]} 21. Kb1 {[%clk 0:02:05]} 21... Kh8 {[%clk 0:02:39.6]} 22. Qd3 {[%clk
0:01:59.7]} 22... Re8 {[%clk 0:02:34]} 23. Nd4 {[%clk 0:01:59.3]} 23... Re3
{[%clk 0:02:33.9]} 24. Qd2 {[%clk 0:01:55.6]} 24... Qe7 {[%clk 0:01:44]} 25. Ne6
{[%clk 0:01:41.4]} 25... Be5 {[%clk 0:01:43]} 26. Rde1 {[%clk 0:01:36]} 26...
Rxf3 {[%clk 0:01:37.4]} 27. Nxg7 {[%clk 0:01:31.7]} 27... Re3 {[%clk 0:01:14.9]}
28. Rxe3 {[%clk 0:01:10.8]} 28... fxe3 {[%clk 0:01:15.8]} 29. Qxe3 {[%clk
0:01:11.7]} 29... Rg8 {[%clk 0:01:00.5]} 30. Nf5 {[%clk 0:00:57.3]} 30... Rxg1+
{[%clk 0:00:59.8]} 31. Qxg1 {[%clk 0:00:58.2]} 31... Qf6 {[%clk 0:01:00]} 32.
Qg4 {[%clk 0:00:36.6]} 32... Bxh2 {[%clk 0:00:54.2]} 33. Qh5 {[%clk 0:00:33.4]}
33... Qe5 {[%clk 0:00:37.1]} 34. a3 {[%clk 0:00:31.4]} 34... Kg8 {[%clk
0:00:25.8]} 35. Nh6+ {[%clk 0:00:26.2]} 35... Kg7 {[%clk 0:00:24.1]} 36. Qh3
{[%clk 0:00:08.9]} 36... Bf4 {[%clk 0:00:19.1]} 37. Nf5+ {[%clk 0:00:08.9]}
37... Kf6 {[%clk 0:00:19.1]} 38. Nh6 {[%clk 0:00:07.6]} 38... Qxd5 {[%clk
0:00:16.6]} 39. Ng4+ {[%clk 0:00:07.4]} 39... Kg5 {[%clk 0:00:16.3]} 40. Nh2
{[%clk 0:00:07.3]} 40... Qd1+ {[%clk 0:00:14]} 41. Ka2 {[%clk 0:00:07.2]} 41...
Qd5+ {[%clk 0:00:14.5]} 42. Kb1 {[%clk 0:00:07.1]} 42... Bxh2 {[%clk 0:00:14.7]}
43. Qxh2 {[%clk 0:00:08]} 43... h5 {[%clk 0:00:15.2]} 44. Qg3+ {[%clk
0:00:07.9]} 44... Kf6 {[%clk 0:00:14.7]} 45. Qf4+ {[%clk 0:00:07.9]} 45... Kg6
{[%clk 0:00:15]} 46. Qg3+ {[%clk 0:00:07.9]} 46... Kf5 {[%clk 0:00:15.4]} 47.
Qh3+ {[%clk 0:00:07.5]} 47... Kf4 {[%clk 0:00:11.8]} 48. Qh4+ {[%clk 0:00:07.8]}
48... Ke3 {[%clk 0:00:12]} 49. Qg3+ {[%clk 0:00:07.2]} 49... Qf3 {[%clk
0:00:11.7]} 50. Qxd6 {[%clk 0:00:06.1]} 50... h4 {[%clk 0:00:11.1]} 51. Qe7+
{[%clk 0:00:06.1]} 51... Qe4 {[%clk 0:00:11.1]} 52. Qg5+ {[%clk 0:00:06.9]}
52... Kf2 {[%clk 0:00:10]} 53. Qd2+ {[%clk 0:00:06.6]} 53... Kg3 {[%clk
0:00:09.3]} 54. Qg5+ {[%clk 0:00:06.3]} 54... Kf3 {[%clk 0:00:08.7]} 55. Qf6+
{[%clk 0:00:06]} 55... Qf4 {[%clk 0:00:09.1]} 56. Qc6+ {[%clk 0:00:06.6]} 56...
Kg3 {[%clk 0:00:09.4]} 57. Qg6+ {[%clk 0:00:06.3]} 57... Kf2 {[%clk 0:00:09.3]}
58. Qb6+ {[%clk 0:00:06.1]} 58... Kg2 {[%clk 0:00:08.6]} 59. Qc6+ {[%clk
0:00:06.2]} 59... Qf3 {[%clk 0:00:08.2]} 60. Qg6+ {[%clk 0:00:06.7]} 60... Kh1
{[%clk 0:00:06.7]} 61. Qd6 {[%clk 0:00:02.7]} 61... h3 {[%clk 0:00:06.1]} 62.
Qe5 {[%clk 0:00:02.9]} 62... h2 {[%clk 0:00:04.6]} 63. Qe1+ {[%clk 0:00:02.6]}
63... Kg2 {[%clk 0:00:04.9]} 64. Qd2+ {[%clk 0:00:03.4]} 64... Kh3 {[%clk
0:00:04.9]} 65. Qh6+ {[%clk 0:00:04]} 65... Kg3 {[%clk 0:00:05.3]} 66. Qg5+
{[%clk 0:00:04.5]} 66... Qg4 {[%clk 0:00:05.8]} 67. Qe3+ {[%clk 0:00:05]} 67...
Qf3 {[%clk 0:00:05.8]} 68. Qg5+ {[%clk 0:00:05.1]} 68... Kf2 {[%clk 0:00:06.3]}
69. Qd2+ {[%clk 0:00:05.3]} 69... Kg1 {[%clk 0:00:06.5]} 70. Qe1+ {[%clk
0:00:05]} 70... Qf1 {[%clk 0:00:06.7]} 71. Qxf1+ {[%clk 0:00:05.9]} 71... Kxf1
{[%clk 0:00:07.6]} 0-1

[Event "*** Titled Tuesday Blitz"]
[Site "Chess.com"]
[Date "2020.04.07"]
[Round "2"]
[White "dmvlad"]
[Black "Tormoz"]
[Result "0-1"]
[WhiteElo "2315"]
[BlackElo "2679"]
[TimeControl "180+1"]
[EndTime "13:21:04 PDT"]
[Termination "Tormoz won by resignation"]

1. e4 {[%clk 0:03:00.4]} 1... e5 {[%clk 0:02:58.5]} 2. Nf3 {[%clk 0:02:59.6]}
2... Nf6 {[%clk 0:02:58.1]} 3. Nxe5 {[%clk 0:02:58.9]} 3... d6 {[%clk
0:02:58.3]} 4. Nf3 {[%clk 0:02:59.1]} 4... Nxe4 {[%clk 0:02:58.3]} 5. d4 {[%clk
0:02:58.5]} 5... d5 {[%clk 0:02:58.2]} 6. Bd3 {[%clk 0:02:59.1]} 6... Nc6 {[%clk
0:02:58.4]} 7. O-O {[%clk 0:02:58.9]} 7... Bg4 {[%clk 0:02:58.3]} 8. Re1 {[%clk
0:02:58.3]} 8... Be7 {[%clk 0:02:58]} 9. c4 {[%clk 0:02:49.4]} 9... Nf6 {[%clk
0:02:57.4]} 10. cxd5 {[%clk 0:02:23.7]} 10... Bxf3 {[%clk 0:02:56.5]} 11. Qxf3
{[%clk 0:02:20.2]} 11... Qxd5 {[%clk 0:02:56.5]} 12. Qxd5 {[%clk 0:02:16]} 12...
Nxd5 {[%clk 0:02:57.4]} 13. Nc3 {[%clk 0:02:16.7]} 13... Ndb4 {[%clk 0:02:25.7]}
14. Be4 {[%clk 0:01:56.5]} 14... Nxd4 {[%clk 0:02:19.2]} 15. Rd1 {[%clk
0:00:39.8]} 15... O-O-O {[%clk 0:02:12.6]} 16. a3 {[%clk 0:00:37.5]} 16... Nb3
{[%clk 0:01:47.7]} 17. Bf5+ {[%clk 0:00:27]} 17... Kb8 {[%clk 0:01:47.1]} 18.
Rb1 {[%clk 0:00:27.5]} 18... Rxd1+ {[%clk 0:01:42.2]} 19. Nxd1 {[%clk
0:00:28.4]} 19... Nc6 {[%clk 0:01:30.7]} 20. Bf4 {[%clk 0:00:26.2]} 20... Ncd4
{[%clk 0:01:15.9]} 21. Bd3 {[%clk 0:00:20.6]} 21... Rd8 {[%clk 0:01:09.5]} 22.
Bc4 {[%clk 0:00:20.8]} 22... Na5 {[%clk 0:01:03.6]} 23. Bf1 {[%clk 0:00:19.9]}
23... Ne6 {[%clk 0:00:47.6]} 24. Be3 {[%clk 0:00:20]} 24... Nc6 {[%clk
0:00:46.3]} 25. Nc3 {[%clk 0:00:19.4]} 25... Ne5 {[%clk 0:00:45.7]} 26. Ne4
{[%clk 0:00:19]} 26... f5 {[%clk 0:00:44.6]} 27. Nc3 {[%clk 0:00:18.1]} 27... f4
{[%clk 0:00:45]} 28. Bc1 {[%clk 0:00:17.6]} 28... g5 {[%clk 0:00:43.1]} 29. h3
{[%clk 0:00:16.8]} 29... Nc5 {[%clk 0:00:41.8]} 30. f3 {[%clk 0:00:16.2]} 30...
Ncd3 {[%clk 0:00:41.3]} 31. h4 {[%clk 0:00:16]} 31... Bc5+ {[%clk 0:00:40.9]}
32. Kh2 {[%clk 0:00:16.2]} 32... g4 {[%clk 0:00:41.3]} 33. Ne4 {[%clk
0:00:16.4]} 33... g3+ {[%clk 0:00:40.7]} 34. Kh3 {[%clk 0:00:14.9]} 34... Nf2+
{[%clk 0:00:40.8]} 35. Nxf2 {[%clk 0:00:15.2]} 35... gxf2 {[%clk 0:00:37]} 36.
Bxf4 {[%clk 0:00:15.7]} 36... Ng6 {[%clk 0:00:32.1]} 37. Bg5 {[%clk 0:00:14.9]}
37... Rd4 {[%clk 0:00:28.2]} 38. h5 {[%clk 0:00:14.6]} 38... Nf4+ {[%clk
0:00:27.3]} 39. Kh2 {[%clk 0:00:13.5]} 39... Nxh5 {[%clk 0:00:26.5]} 40. g4
{[%clk 0:00:11.7]} 40... Nf4 {[%clk 0:00:24.5]} 41. Bxf4 {[%clk 0:00:11.1]}
41... Rxf4 {[%clk 0:00:24.1]} 42. Kg3 {[%clk 0:00:12]} 42... Rf8 {[%clk
0:00:22.8]} 43. Rd1 {[%clk 0:00:12]} 43... a6 {[%clk 0:00:21]} 44. Be2 {[%clk
0:00:11.6]} 44... Re8 {[%clk 0:00:20.6]} 45. Bf1 {[%clk 0:00:11.6]} 45... Ka7
{[%clk 0:00:20.8]} 46. Kg2 {[%clk 0:00:11.3]} 46... Re1 {[%clk 0:00:20.3]} 47.
Rd7 {[%clk 0:00:11.1]} 47... Bb6 {[%clk 0:00:20.2]} 48. Rxh7 {[%clk 0:00:11.1]}
48... Rb1 {[%clk 0:00:20.8]} 49. b4 {[%clk 0:00:10.5]} 49... Rb3 {[%clk
0:00:20.3]} 50. g5 {[%clk 0:00:10.9]} 50... Re3 {[%clk 0:00:18.5]} 51. g6 {[%clk
0:00:10.8]} 51... Bd4 {[%clk 0:00:16.2]} 52. Rf7 {[%clk 0:00:10.2]} 52... Re8
{[%clk 0:00:15.2]} 53. f4 {[%clk 0:00:09.3]} 53... c5 {[%clk 0:00:14.5]} 54. f5
{[%clk 0:00:10]} 54... cxb4 {[%clk 0:00:14]} 55. axb4 {[%clk 0:00:10.9]} 55...
Rg8 {[%clk 0:00:13.1]} 56. Kf3 {[%clk 0:00:10.6]} 56... Kb6 {[%clk 0:00:13.4]}
57. Bd3 {[%clk 0:00:10.3]} 57... a5 {[%clk 0:00:13]} 58. Ke2 {[%clk 0:00:10.6]}
58... axb4 {[%clk 0:00:13.1]} 59. f6 {[%clk 0:00:09.2]} 59... b3 {[%clk
0:00:13.4]} 60. g7 {[%clk 0:00:09.5]} 60... b2 {[%clk 0:00:13.5]} 61. Rf8 {[%clk
0:00:09.9]} 61... Bxf6 {[%clk 0:00:12.9]} 62. Rf7 {[%clk 0:00:10.3]} 62... Bxg7
{[%clk 0:00:12.6]} 63. Rxf2 {[%clk 0:00:10.1]} 63... Bd4 {[%clk 0:00:13.5]} 64.
Rf7 {[%clk 0:00:10.2]} 64... Re8+ {[%clk 0:00:14.4]} 65. Kd2 {[%clk 0:00:10]}
65... Rd8 {[%clk 0:00:15.1]} 66. Kc2 {[%clk 0:00:09.1]} 66... Be5 {[%clk
0:00:15.1]} 67. Re7 {[%clk 0:00:08.7]} 67... Rxd3 {[%clk 0:00:14.7]} 68. Rxe5
{[%clk 0:00:08.2]} 68... Rb3 {[%clk 0:00:15.2]} 69. Kb1 {[%clk 0:00:08.6]} 69...
Rb5 {[%clk 0:00:15.5]} 70. Re2 {[%clk 0:00:09.5]} 70... Ka5 {[%clk 0:00:15.6]}
71. Rc2 {[%clk 0:00:10.2]} 71... Ka4 {[%clk 0:00:15.8]} 72. Rc3 {[%clk 0:00:10]}
72... Rb4 {[%clk 0:00:16.7]} 73. Rc2 {[%clk 0:00:10.3]} 73... Kb3 {[%clk
0:00:16.1]} 74. Rxb2+ {[%clk 0:00:10.3]} 74... Kc4 {[%clk 0:00:16.1]} 75. Rxb4+
{[%clk 0:00:08]} 75... Kxb4 {[%clk 0:00:17]} 76. Kb2 {[%clk 0:00:08.9]} 76... b5
{[%clk 0:00:17.3]} 77. Kc2 {[%clk 0:00:08.2]} 77... Ka3 {[%clk 0:00:17.5]} 78.
Kb1 {[%clk 0:00:08]} 78... Kb3 {[%clk 0:00:17.7]} 79. Ka1 {[%clk 0:00:08.4]}
79... Kc2 {[%clk 0:00:17.8]} 80. Ka2 {[%clk 0:00:09.3]} 80... b4 {[%clk
0:00:18.1]} 0-1

[Event "*** Titled Tuesday Blitz"]
[Site "Chess.com"]
[Date "2020.04.07"]
[Round "2"]
[White "beccrajoy"]
[Black "eCztery"]
[Result "1-0"]
[WhiteElo "1790"]
[BlackElo "2371"]
[TimeControl "180+1"]
[EndTime "13:21:09 PDT"]
[Termination "beccrajoy won by checkmate"]

1. e4 {[%clk 0:03:00.9]} 1... c5 {[%clk 0:02:57.9]} 2. Nf3 {[%clk 0:02:59.9]}
2... Nc6 {[%clk 0:02:57.2]} 3. d4 {[%clk 0:03:00.8]} 3... cxd4 {[%clk
0:02:58.1]} 4. Nxd4 {[%clk 0:03:01.7]} 4... g6 {[%clk 0:02:57.9]} 5. Nc3 {[%clk
0:02:57.5]} 5... Bg7 {[%clk 0:02:57.6]} 6. Be3 {[%clk 0:02:58]} 6... Nf6 {[%clk
0:02:57.1]} 7. Nxc6 {[%clk 0:02:56.2]} 7... bxc6 {[%clk 0:02:58]} 8. e5 {[%clk
0:02:55.3]} 8... Ng8 {[%clk 0:02:57.9]} 9. Bd4 {[%clk 0:02:54]} 9... Qc7 {[%clk
0:02:57.8]} 10. f4 {[%clk 0:02:52.3]} 10... Nh6 {[%clk 0:02:57.7]} 11. e6 {[%clk
0:02:33.1]} 11... O-O {[%clk 0:02:49.7]} 12. Bxg7 {[%clk 0:02:27.7]} 12... Kxg7
{[%clk 0:02:50.6]} 13. Qd4+ {[%clk 0:02:25.2]} 13... f6 {[%clk 0:02:46.3]} 14.
exd7 {[%clk 0:02:24.5]} 14... Bxd7 {[%clk 0:02:40.4]} 15. O-O-O {[%clk
0:02:25.2]} 15... Bg4 {[%clk 0:02:37]} 16. Be2 {[%clk 0:02:23.9]} 16... Nf5
{[%clk 0:02:24.3]} 17. Qd7 {[%clk 0:02:15.4]} 17... Qxf4+ {[%clk 0:02:05.1]} 18.
Kb1 {[%clk 0:02:10.6]} 18... Rfd8 {[%clk 0:02:05]} 19. Qxc6 {[%clk 0:02:06.5]}
19... Rac8 {[%clk 0:01:58.2]} 20. Qb7 {[%clk 0:01:45.7]} 20... Rxc3 {[%clk
0:01:44.2]} 21. Bxg4 {[%clk 0:01:38.7]} 21... Rxd1+ {[%clk 0:01:40.7]} 22. Rxd1
{[%clk 0:01:38.3]} 22... Qxg4 {[%clk 0:01:40.5]} 23. Rc1 {[%clk 0:01:24.6]}
23... Re3 {[%clk 0:01:36.8]} 24. Qxa7 {[%clk 0:01:22.8]} 24... Qe4 {[%clk
0:01:34.4]} 25. a4 {[%clk 0:01:19.2]} 25... Re1 {[%clk 0:01:34]} 26. Rxe1 {[%clk
0:01:17.7]} 26... Qxe1+ {[%clk 0:01:34.9]} 27. Ka2 {[%clk 0:01:18.2]} 27... Qe2
{[%clk 0:01:31.5]} 28. Qc5 {[%clk 0:01:15]} 28... Qxg2 {[%clk 0:01:25.1]} 29. a5
{[%clk 0:01:12.5]} 29... Qe2 {[%clk 0:01:13.6]} 30. c4 {[%clk 0:01:08]} 30...
Nd6 {[%clk 0:01:08.5]} 31. Kb3 {[%clk 0:01:01.4]} 31... Qd3+ {[%clk 0:00:56.9]}
32. Kb4 {[%clk 0:00:57.1]} 32... Qd2+ {[%clk 0:00:57]} 33. Kb3 {[%clk
0:00:56.4]} 33... Qd1+ {[%clk 0:00:50]} 34. Kb4 {[%clk 0:00:51.7]} 34... Qc2
{[%clk 0:00:50.4]} 35. b3 {[%clk 0:00:49.6]} 35... Qd2+ {[%clk 0:00:47.8]} 36.
Ka3 {[%clk 0:00:48.9]} 36... Qxh2 {[%clk 0:00:41.7]} 37. a6 {[%clk 0:00:48.1]}
37... Qg2 {[%clk 0:00:37.3]} 38. Qc7 {[%clk 0:00:43.4]} 38... Qe4 {[%clk
0:00:24.3]} 39. a7 {[%clk 0:00:36.4]} 39... Qd4 {[%clk 0:00:18.7]} 40. Qxe7+
{[%clk 0:00:29.4]} 40... Kh6 {[%clk 0:00:18.2]} 41. Qf8+ {[%clk 0:00:27.3]}
41... Kh5 {[%clk 0:00:17]} 42. Qb8 {[%clk 0:00:24.8]} 42... Nxc4+ {[%clk
0:00:14.9]} 43. bxc4 {[%clk 0:00:22.5]} 43... Qc3+ {[%clk 0:00:14.7]} 44. Qb3
{[%clk 0:00:21]} 44... Qa5+ {[%clk 0:00:14.1]} 45. Qa4 {[%clk 0:00:19.8]} 45...
Qc3+ {[%clk 0:00:13.8]} 46. Ka2 {[%clk 0:00:19.6]} 46... Qd2+ {[%clk 0:00:13]}
47. Kb3 {[%clk 0:00:19.3]} 47... Qd1+ {[%clk 0:00:12.4]} 48. Kb4 {[%clk
0:00:19.6]} 48... Qd6+ {[%clk 0:00:12.8]} 49. c5 {[%clk 0:00:19]} 49... Qd4+
{[%clk 0:00:12.6]} 50. Kb5 {[%clk 0:00:19]} 50... Qd7+ {[%clk 0:00:13.1]} 51. c6
{[%clk 0:00:19.2]} 51... Qd3+ {[%clk 0:00:11.3]} 52. Kb6 {[%clk 0:00:18.9]}
52... Qe3+ {[%clk 0:00:10.2]} 53. Kb7 {[%clk 0:00:18]} 53... Qe7+ {[%clk
0:00:10.1]} 54. c7 {[%clk 0:00:16.9]} 54... Qe4+ {[%clk 0:00:10.4]} 55. Qc6
{[%clk 0:00:16.1]} 55... Qb4+ {[%clk 0:00:10.5]} 56. Ka8 {[%clk 0:00:09.6]}
56... f5 {[%clk 0:00:10.9]} 57. c8=Q {[%clk 0:00:09.5]} 57... f4 {[%clk
0:00:11.5]} 58. Qf3+ {[%clk 0:00:09.1]} 58... Kg5 {[%clk 0:00:09.7]} 59. Qd8+
{[%clk 0:00:08.4]} 59... Kh6 {[%clk 0:00:08]} 60. Qh3+ {[%clk 0:00:07.1]} 60...
Kg7 {[%clk 0:00:08.2]} 61. Qdd7+ {[%clk 0:00:07.2]} 61... Kf6 {[%clk 0:00:03.6]}
62. Qhe6+ {[%clk 0:00:06]} 62... Kg5 {[%clk 0:00:03.7]} 63. Qg4+ {[%clk
0:00:05.9]} 63... Kh6 {[%clk 0:00:03.6]} 64. Qh4# {[%clk 0:00:06.2]} 1-0

[Event "*** Titled Tuesday Blitz"]
[Site "Chess.com"]
[Date "2020.04.07"]
[Round "2"]
[White "Lagmantr"]
[Black "biostatistician"]
[Result "0-1"]
[WhiteElo "2727"]
[BlackElo "2519"]
[TimeControl "180+1"]
[EndTime "13:21:15 PDT"]
[Termination "biostatistician won by resignation"]

1. e4 {[%clk 0:03:00.3]} 1... e6 {[%clk 0:02:59.8]} 2. d4 {[%clk 0:03:00]} 2...
d5 {[%clk 0:03:00.4]} 3. Nc3 {[%clk 0:02:56.4]} 3... Nc6 {[%clk 0:03:00.4]} 4.
e5 {[%clk 0:02:55.5]} 4... f6 {[%clk 0:03:00.1]} 5. f4 {[%clk 0:02:55.6]} 5...
Nh6 {[%clk 0:02:59.9]} 6. Nf3 {[%clk 0:02:55.4]} 6... Bb4 {[%clk 0:02:57.9]} 7.
a3 {[%clk 0:02:53.8]} 7... Ba5 {[%clk 0:02:58]} 8. b4 {[%clk 0:02:49.5]} 8...
Bb6 {[%clk 0:02:58]} 9. Na4 {[%clk 0:02:49.9]} 9... O-O {[%clk 0:02:57.1]} 10.
Nxb6 {[%clk 0:02:44.5]} 10... axb6 {[%clk 0:02:58]} 11. c3 {[%clk 0:02:44.5]}
11... Bd7 {[%clk 0:02:54]} 12. Bd3 {[%clk 0:02:44.3]} 12... Be8 {[%clk
0:02:53.9]} 13. Qc2 {[%clk 0:02:42.6]} 13... f5 {[%clk 0:02:48.7]} 14. O-O
{[%clk 0:02:41.8]} 14... Bh5 {[%clk 0:02:48.8]} 15. Be3 {[%clk 0:02:38]} 15...
Bxf3 {[%clk 0:02:43.1]} 16. Rxf3 {[%clk 0:02:37.9]} 16... Qe7 {[%clk 0:02:34.9]}
17. h3 {[%clk 0:02:30.5]} 17... Ra7 {[%clk 0:02:29.3]} 18. a4 {[%clk 0:02:25.1]}
18... g6 {[%clk 0:02:26.1]} 19. Qb3 {[%clk 0:02:24.7]} 19... Kg7 {[%clk
0:02:20.9]} 20. Rff1 {[%clk 0:02:24.5]} 20... Rfa8 {[%clk 0:02:19.6]} 21. Rfb1
{[%clk 0:02:24.3]} 21... Nb8 {[%clk 0:02:17.2]} 22. c4 {[%clk 0:02:23.2]} 22...
c6 {[%clk 0:02:11.8]} 23. b5 {[%clk 0:02:16.5]} 23... Nd7 {[%clk 0:01:42.4]} 24.
Bf2 {[%clk 0:02:11.1]} 24... Nf7 {[%clk 0:01:39.5]} 25. Qc2 {[%clk 0:01:57.8]}
25... h6 {[%clk 0:01:35.7]} 26. h4 {[%clk 0:01:56.3]} 26... h5 {[%clk
0:01:33.6]} 27. Be2 {[%clk 0:01:47.2]} 27... Nh6 {[%clk 0:01:33.5]} 28. c5
{[%clk 0:01:47]} 28... bxc5 {[%clk 0:01:24.4]} 29. dxc5 {[%clk 0:01:45.5]} 29...
Ng4 {[%clk 0:01:24.6]} 30. Bxg4 {[%clk 0:01:45.6]} 30... fxg4 {[%clk 0:01:22.5]}
31. g3 {[%clk 0:01:40]} 31... Qf7 {[%clk 0:01:18.7]} 32. Bd4 {[%clk 0:01:32.9]}
32... Qf5 {[%clk 0:01:18.7]} 33. Qxf5 {[%clk 0:01:27.2]} 33... gxf5 {[%clk
0:01:19.6]} 34. Rb4 {[%clk 0:01:28.1]} 34... Kf7 {[%clk 0:01:17.9]} 35. bxc6
{[%clk 0:01:17.2]} 35... bxc6 {[%clk 0:01:17.5]} 36. Kf2 {[%clk 0:01:14.8]}
36... Ke7 {[%clk 0:01:17.8]} 37. Ke3 {[%clk 0:01:09.6]} 37... Kd8 {[%clk
0:01:18]} 38. Kd3 {[%clk 0:01:02.7]} 38... Kc7 {[%clk 0:01:18.3]} 39. Kc3 {[%clk
0:01:02.7]} 39... Ra5 {[%clk 0:01:18.3]} 40. Kb3 {[%clk 0:01:00.3]} 40... Nxc5+
{[%clk 0:01:14]} 41. Bxc5 {[%clk 0:01:01.1]} 41... Rxc5 {[%clk 0:01:14.9]} 42.
Rb1 {[%clk 0:01:00]} 42... Rca5 {[%clk 0:01:06.1]} 43. Ka3 {[%clk 0:00:58.8]}
43... R8a7 {[%clk 0:01:06.2]} 44. Rc1 {[%clk 0:00:50.5]} 44... c5 {[%clk
0:01:04.1]} 45. Kb3 {[%clk 0:00:50.9]} 45... Kc6 {[%clk 0:00:58.1]} 46. Rb8
{[%clk 0:00:49.1]} 46... c4+ {[%clk 0:00:57.1]} 47. Kc3 {[%clk 0:00:45.3]} 47...
Rxa4 {[%clk 0:00:57.5]} 48. Rcb1 {[%clk 0:00:34.7]} 48... Ra3+ {[%clk
0:00:56.4]} 49. Kd2 {[%clk 0:00:34.4]} 49... Ra2+ {[%clk 0:00:56.6]} 50. Kc3
{[%clk 0:00:33.9]} 50... R7a3+ {[%clk 0:00:56.5]} 51. Kb4 {[%clk 0:00:34.2]}
51... Ra4+ {[%clk 0:00:48.8]} 52. Kc3 {[%clk 0:00:32.5]} 52... R2a3+ {[%clk
0:00:49.2]} 53. Kd2 {[%clk 0:00:32.6]} 53... d4 {[%clk 0:00:38.2]} 54. R8b6+
{[%clk 0:00:27.2]} 54... Kd5 {[%clk 0:00:37.4]} 55. Rd6+ {[%clk 0:00:24.4]}
55... Ke4 {[%clk 0:00:37.7]} 56. Re1+ {[%clk 0:00:23.7]} 56... Re3 {[%clk
0:00:26.6]} 57. Rb1 {[%clk 0:00:19.5]} 57... c3+ {[%clk 0:00:24.6]} 58. Kc2
{[%clk 0:00:19.2]} 58... Re2+ {[%clk 0:00:19.8]} 59. Kb3 {[%clk 0:00:17.8]}
59... Raa2 {[%clk 0:00:20.2]} 60. Rd1 {[%clk 0:00:09.3]} 60... Rad2 {[%clk
0:00:16.1]} 61. Rc1 {[%clk 0:00:09.6]} 61... c2 {[%clk 0:00:16.2]} 62. Rxe6
{[%clk 0:00:09.6]} 62... d3 {[%clk 0:00:16.7]} 63. Rc6 {[%clk 0:00:08.9]} 63...
Rd1 {[%clk 0:00:16.7]} 64. Kb2 {[%clk 0:00:09.1]} 64... Rxc1 {[%clk 0:00:16.6]}
65. Kxc1 {[%clk 0:00:10]} 65... Re1+ {[%clk 0:00:17.2]} 66. Kb2 {[%clk
0:00:10.5]} 66... Rb1+ {[%clk 0:00:17.7]} 67. Ka2 {[%clk 0:00:10.9]} 67... c1=Q
{[%clk 0:00:18.6]} 68. Rxc1 {[%clk 0:00:11.7]} 68... Rxc1 {[%clk 0:00:19.5]} 69.
Kb2 {[%clk 0:00:12.6]} 69... Rc8 {[%clk 0:00:19.5]} 70. e6 {[%clk 0:00:12.9]}
70... d2 {[%clk 0:00:20.4]} 71. e7 {[%clk 0:00:13.8]} 71... d1=Q {[%clk
0:00:20.7]} 72. e8=Q+ {[%clk 0:00:14.7]} 72... Rxe8 {[%clk 0:00:21]} 0-1